[Event "*** Titled Tuesday Blitz"]
[Site "Chess.com"]
[Date "2019.05.07"]
[Round "7"]
[White "JonahWillow"]
[Black "xamax2000"]
[Result "1-0"]
[WhiteElo "2725"]
[BlackElo "2624"]
[TimeControl "180+2"]
[EndTime "14:40:47 PDT"]
[Termination "JonahWillow won on time"]

1. e4 {[%clk 0:03:01.9]} 1... c5 {[%clk 0:02:59.7]} 2. Nf3 {[%clk 0:03:02.8]}
2... d6 {[%clk 0:03:00.5]} 3. d4 {[%clk 0:03:04.1]} 3... cxd4 {[%clk 0:03:02.4]}
4. Qxd4 {[%clk 0:03:05.3]} 4... Nf6 {[%clk 0:03:04.3]} 5. Nc3 {[%clk 0:03:06]}
5... Nc6 {[%clk 0:03:03.9]} 6. Bb5 {[%clk 0:03:06.8]} 6... Bd7 {[%clk
0:03:05.5]} 7. Bxc6 {[%clk 0:03:08.4]} 7... Bxc6 {[%clk 0:03:07.4]} 8. Bg5
{[%clk 0:03:09.7]} 8... e6 {[%clk 0:03:05.2]} 9. O-O-O {[%clk 0:03:10]} 9... Be7
{[%clk 0:03:06]} 10. Qd3 {[%clk 0:03:11.3]} 10... Qa5 {[%clk 0:03:05.4]} 11. h4
{[%clk 0:03:08.8]} 11... Rc8 {[%clk 0:03:04.9]} 12. Nd4 {[%clk 0:03:04.6]} 12...
O-O {[%clk 0:03:03.3]} 13. f4 {[%clk 0:02:59.9]} 13... Rfe8 {[%clk 0:02:57.8]}
14. Kb1 {[%clk 0:02:56.6]} 14... h6 {[%clk 0:02:41.5]} 15. Bxf6 {[%clk
0:02:36.5]} 15... Bxf6 {[%clk 0:02:43.4]} 16. g4 {[%clk 0:02:37.4]} 16... Bxd4
{[%clk 0:02:21.8]} 17. Qxd4 {[%clk 0:02:33.7]} 17... e5 {[%clk 0:02:23.7]} 18.
fxe5 {[%clk 0:01:58.1]} 18... dxe5 {[%clk 0:02:20]} 19. Qf2 {[%clk 0:01:45.4]}
19... Rcd8 {[%clk 0:02:10.2]} 20. Rhf1 {[%clk 0:01:40.7]} 20... Rxd1+ {[%clk
0:02:02]} 21. Nxd1 {[%clk 0:01:32.9]} 21... Re7 {[%clk 0:01:57.2]} 22. Nc3
{[%clk 0:01:28.9]} 22... Rd7 {[%clk 0:01:57.9]} 23. g5 {[%clk 0:01:27.7]} 23...
h5 {[%clk 0:01:49.3]} 24. a3 {[%clk 0:01:22.4]} 24... Qd8 {[%clk 0:01:44.1]} 25.
Qf5 {[%clk 0:01:15.8]} 25... Qe8 {[%clk 0:01:03.3]} 26. Rg1 {[%clk 0:01:02]}
26... Rd6 {[%clk 0:00:56.5]} 27. Qf3 {[%clk 0:00:58.5]} 27... g6 {[%clk
0:00:56.9]} 28. Rf1 {[%clk 0:00:57.6]} 28... Qd7 {[%clk 0:00:55.6]} 29. b3
{[%clk 0:00:51.8]} 29... Rd4 {[%clk 0:00:51.3]} 30. Kb2 {[%clk 0:00:51.2]} 30...
a5 {[%clk 0:00:26.8]} 31. Qf6 {[%clk 0:00:36.9]} 31... Bxe4 {[%clk 0:00:25.6]}
32. Qxe5 {[%clk 0:00:37.6]} 32... Bf5 {[%clk 0:00:24.9]} 33. Qb8+ {[%clk
0:00:26.3]} 33... Kh7 {[%clk 0:00:22.9]} 34. Rf2 {[%clk 0:00:25.6]} 34... Rd2
{[%clk 0:00:21.1]} 35. Qh2 {[%clk 0:00:24.3]} 35... Rd4 {[%clk 0:00:18.7]} 36.
Qe5 {[%clk 0:00:20.6]} 36... Rxh4 {[%clk 0:00:19.3]} 37. Qxa5 {[%clk 0:00:21.2]}
1-0

[Event "*** Titled Tuesday Blitz"]
[Site "Chess.com"]
[Date "2019.05.07"]
[Round "7"]
[White "Alex_Terzi"]
[Black "GCamachoMartinez"]
[Result "0-1"]
[WhiteElo "2484"]
[BlackElo "2385"]
[TimeControl "180+2"]
[EndTime "14:41:01 PDT"]
[Termination "GCamachoMartinez won by resignation"]

1. e4 {[%clk 0:03:01.9]} 1... e5 {[%clk 0:03:00.2]} 2. Nf3 {[%clk 0:03:02.5]}
2... Nf6 {[%clk 0:03:01.3]} 3. Nxe5 {[%clk 0:03:02.7]} 3... d6 {[%clk
0:03:02.4]} 4. Nf3 {[%clk 0:03:02.8]} 4... Nxe4 {[%clk 0:03:03.9]} 5. d4 {[%clk
0:03:04.1]} 5... d5 {[%clk 0:03:04.4]} 6. Bd3 {[%clk 0:03:05.4]} 6... Be7 {[%clk
0:03:06]} 7. c4 {[%clk 0:03:06.4]} 7... Nc6 {[%clk 0:02:48.1]} 8. Nc3 {[%clk
0:03:06]} 8... Nf6 {[%clk 0:02:38]} 9. O-O {[%clk 0:02:41.5]} 9... O-O {[%clk
0:02:38]} 10. h3 {[%clk 0:02:42.2]} 10... Nb4 {[%clk 0:02:35.9]} 11. Be2 {[%clk
0:02:38.9]} 11... dxc4 {[%clk 0:02:37]} 12. Bxc4 {[%clk 0:02:39.5]} 12... Nbd5
{[%clk 0:02:38.5]} 13. Ne5 {[%clk 0:02:39]} 13... c6 {[%clk 0:02:39.5]} 14. Bg5
{[%clk 0:02:32.5]} 14... Be6 {[%clk 0:02:38.9]} 15. Bb3 {[%clk 0:02:30.7]} 15...
Qc7 {[%clk 0:02:13.9]} 16. Qf3 {[%clk 0:02:10.2]} 16... Rad8 {[%clk 0:02:11.7]}
17. Rad1 {[%clk 0:02:10.3]} 17... Rfe8 {[%clk 0:02:05.5]} 18. Bc2 {[%clk
0:02:09]} 18... Nd7 {[%clk 0:01:31.5]} 19. Bxe7 {[%clk 0:02:01]} 19... Rxe7
{[%clk 0:01:31.9]} 20. Nxd7 {[%clk 0:01:45.9]} 20... Rexd7 {[%clk 0:01:28.5]}
21. Ne4 {[%clk 0:01:35.6]} 21... Qf4 {[%clk 0:01:29.1]} 22. Qd3 {[%clk
0:01:23.1]} 22... Bf5 {[%clk 0:01:23.3]} 23. a3 {[%clk 0:01:17.9]} 23... Bxe4
{[%clk 0:01:19.8]} 24. Qxe4 {[%clk 0:01:18.5]} 24... Qxe4 {[%clk 0:01:21.1]} 25.
Bxe4 {[%clk 0:01:20.4]} 25... Nf6 {[%clk 0:01:22.2]} 26. Rfe1 {[%clk 0:01:15.1]}
26... Rxd4 {[%clk 0:01:23.7]} 27. Rxd4 {[%clk 0:01:15.6]} 27... Rxd4 {[%clk
0:01:24.7]} 28. Bf3 {[%clk 0:01:16.7]} 28... Kf8 {[%clk 0:01:25.6]} 29. Re2
{[%clk 0:01:12]} 29... a5 {[%clk 0:01:19.2]} 30. g3 {[%clk 0:01:12.7]} 30... a4
{[%clk 0:01:13.7]} 31. Rc2 {[%clk 0:01:11.1]} 31... h5 {[%clk 0:01:08.8]} 32. h4
{[%clk 0:01:11.6]} 32... g6 {[%clk 0:01:08.7]} 33. Re2 {[%clk 0:01:12.3]} 33...
Ne8 {[%clk 0:00:57.5]} 34. Re3 {[%clk 0:00:50.8]} 34... Nd6 {[%clk 0:00:56.4]}
35. b3 {[%clk 0:00:52.1]} 35... axb3 {[%clk 0:00:43.6]} 36. Rxb3 {[%clk
0:00:54]} 36... Ke7 {[%clk 0:00:43.6]} 37. Kg2 {[%clk 0:00:51.2]} 37... Kd7
{[%clk 0:00:44.3]} 38. Re3 {[%clk 0:00:46.2]} 38... b5 {[%clk 0:00:44.5]} 39.
Rc3 {[%clk 0:00:46.2]} 39... Rc4 {[%clk 0:00:41.8]} 40. Rd3 {[%clk 0:00:46.2]}
40... c5 {[%clk 0:00:42.3]} 41. Be2 {[%clk 0:00:36.1]} 41... Rc2 {[%clk
0:00:37.9]} 42. Kf3 {[%clk 0:00:33.4]} 42... c4 {[%clk 0:00:35.5]} 43. Re3
{[%clk 0:00:33.9]} 43... Nf5 {[%clk 0:00:34.1]} 44. Re5 {[%clk 0:00:30]} 44...
Nd4+ {[%clk 0:00:32.2]} 45. Kg2 {[%clk 0:00:28.4]} 45... Nxe2 {[%clk 0:00:32.5]}
46. Rxb5 {[%clk 0:00:28.6]} 46... c3 {[%clk 0:00:30.8]} 47. Kf1 {[%clk
0:00:27.9]} 47... Rd2 {[%clk 0:00:25.6]} 48. Rc5 {[%clk 0:00:27.3]} 0-1

[Event "*** Titled Tuesday Blitz"]
[Site "Chess.com"]
[Date "2019.05.07"]
[Round "7"]
[White "novocane"]
[Black "zurzan"]
[Result "1-0"]
[WhiteElo "2242"]
[BlackElo "1983"]
[TimeControl "180+2"]
[EndTime "14:41:07 PDT"]
[Termination "novocane won by resignation"]

1. d4 {[%clk 0:03:01.9]} 1... d6 {[%clk 0:03:01.9]} 2. c4 {[%clk 0:03:02.5]}
2... f5 {[%clk 0:03:02.1]} 3. Nc3 {[%clk 0:03:03]} 3... Nf6 {[%clk 0:03:03]} 4.
Bg5 {[%clk 0:03:03.7]} 4... Nbd7 {[%clk 0:03:02.8]} 5. Qc2 {[%clk 0:02:57]} 5...
e6 {[%clk 0:03:02.9]} 6. e4 {[%clk 0:02:54.9]} 6... g6 {[%clk 0:02:59.3]} 7.
O-O-O {[%clk 0:02:46.7]} 7... h6 {[%clk 0:02:59.3]} 8. Bxf6 {[%clk 0:02:44]}
8... Qxf6 {[%clk 0:02:58.7]} 9. Nf3 {[%clk 0:02:18.5]} 9... Bg7 {[%clk
0:02:55.1]} 10. e5 {[%clk 0:01:59.6]} 10... Qf7 {[%clk 0:02:50.9]} 11. Nb5
{[%clk 0:01:49.2]} 11... O-O {[%clk 0:02:21.2]} 12. Nxc7 {[%clk 0:01:43.7]}
12... dxe5 {[%clk 0:02:02.2]} 13. Nxa8 {[%clk 0:01:42.6]} 13... e4 {[%clk
0:02:00.5]} 14. Ne1 {[%clk 0:01:10]} 14... Nf6 {[%clk 0:01:55.1]} 15. Qa4 {[%clk
0:00:59.3]} 15... b6 {[%clk 0:01:52.4]} 16. Nc2 {[%clk 0:00:38.7]} 16... Bb7
{[%clk 0:01:52.1]} 17. Nxb6 {[%clk 0:00:36]} 17... axb6 {[%clk 0:01:52.4]} 18.
Qa7 {[%clk 0:00:33]} 18... Ra8 {[%clk 0:01:52.2]} 19. Qxb6 {[%clk 0:00:33.9]}
19... Rxa2 {[%clk 0:01:51.5]} 20. Qb3 {[%clk 0:00:33.6]} 20... Ra7 {[%clk
0:01:45.5]} 21. Be2 {[%clk 0:00:31.7]} 21... Kh7 {[%clk 0:01:43.6]} 22. h4
{[%clk 0:00:26.4]} 22... f4 {[%clk 0:01:39.2]} 23. Rhe1 {[%clk 0:00:21.5]} 23...
Bc6 {[%clk 0:01:30]} 24. g3 {[%clk 0:00:19.8]} 24... f3 {[%clk 0:01:23]} 25. Bf1
{[%clk 0:00:20.5]} 25... Ng4 {[%clk 0:01:20.9]} 26. Rd2 {[%clk 0:00:20.3]} 26...
Ba4 {[%clk 0:01:16.4]} 27. Qc3 {[%clk 0:00:19.5]} 27... Bxc2 {[%clk 0:01:15.7]}
28. Kxc2 {[%clk 0:00:20.8]} 28... e5 {[%clk 0:00:58.5]} 29. d5 {[%clk
0:00:21.2]} 29... e3 {[%clk 0:00:58.4]} 30. Rxe3 {[%clk 0:00:21.6]} 30... Nxe3+
{[%clk 0:00:58.2]} 31. Qxe3 {[%clk 0:00:22.2]} 31... Rb7 {[%clk 0:00:46]} 32. h5
{[%clk 0:00:22.2]} 32... g5 {[%clk 0:00:44.2]} 33. Qe4+ {[%clk 0:00:23]} 33...
Kh8 {[%clk 0:00:44.9]} 34. Bd3 {[%clk 0:00:23.9]} 34... Kg8 {[%clk 0:00:38.6]}
35. Rd1 {[%clk 0:00:20.6]} 35... Kf8 {[%clk 0:00:35.8]} 36. Ra1 {[%clk
0:00:21.4]} 36... Rb8 {[%clk 0:00:35.4]} 37. Ra6 {[%clk 0:00:22]} 37... Qb7
{[%clk 0:00:25.2]} 38. Qxf3+ {[%clk 0:00:17.1]} 38... Ke7 {[%clk 0:00:22.3]} 39.
d6+ {[%clk 0:00:16.2]} 39... Kd8 {[%clk 0:00:20.3]} 40. Qxb7 {[%clk 0:00:17]}
40... Rxb7 {[%clk 0:00:21.6]} 41. Be4 {[%clk 0:00:17.9]} 41... Rd7 {[%clk
0:00:17.8]} 42. c5 {[%clk 0:00:18.4]} 42... Ke8 {[%clk 0:00:14.8]} 43. Bg6+
{[%clk 0:00:18.6]} 43... Kf8 {[%clk 0:00:14.4]} 44. Ra8+ {[%clk 0:00:19.7]} 1-0

[Event "*** Titled Tuesday Blitz"]
[Site "Chess.com"]
[Date "2019.05.07"]
[Round "7"]
[White "MITerryble"]
[Black "Msb2"]
[Result "0-1"]
[WhiteElo "2813"]
[BlackElo "2966"]
[TimeControl "180+2"]
[EndTime "14:41:12 PDT"]
[Termination "Msb2 won by checkmate"]

1. d4 {[%clk 0:03:01.9]} 1... d5 {[%clk 0:03:00.8]} 2. Nf3 {[%clk 0:03:03.2]}
2... Nf6 {[%clk 0:03:01.6]} 3. c4 {[%clk 0:03:04.1]} 3... c6 {[%clk 0:03:02.6]}
4. Nc3 {[%clk 0:03:04.8]} 4... dxc4 {[%clk 0:03:04]} 5. a4 {[%clk 0:03:05.6]}
5... Bf5 {[%clk 0:03:04.8]} 6. Ne5 {[%clk 0:03:06.8]} 6... Nbd7 {[%clk
0:03:06.2]} 7. Nxc4 {[%clk 0:03:07.8]} 7... Qc7 {[%clk 0:03:07.8]} 8. Qd2 {[%clk
0:03:08.7]} 8... g6 {[%clk 0:03:05.1]} 9. f3 {[%clk 0:03:09]} 9... Be6 {[%clk
0:03:06.1]} 10. e4 {[%clk 0:03:05.4]} 10... Bxc4 {[%clk 0:03:07.3]} 11. Bxc4
{[%clk 0:03:07.3]} 11... e5 {[%clk 0:03:08.5]} 12. dxe5 {[%clk 0:02:36.4]} 12...
Nxe5 {[%clk 0:03:08.4]} 13. Be2 {[%clk 0:02:37.5]} 13... Bg7 {[%clk 0:02:45.6]}
14. Qe3 {[%clk 0:02:23.7]} 14... Rd8 {[%clk 0:02:07.2]} 15. f4 {[%clk
0:01:57.8]} 15... Neg4 {[%clk 0:01:58.4]} 16. Qg3 {[%clk 0:01:58.3]} 16... h5
{[%clk 0:01:50.9]} 17. h3 {[%clk 0:01:54]} 17... h4 {[%clk 0:01:38.1]} 18. Qf3
{[%clk 0:01:54.9]} 18... Nh6 {[%clk 0:01:39.6]} 19. Qf2 {[%clk 0:01:36]} 19...
Qe7 {[%clk 0:01:26.6]} 20. e5 {[%clk 0:00:37.9]} 20... Nf5 {[%clk 0:00:49.2]}
21. O-O {[%clk 0:00:25.1]} 21... Ng3 {[%clk 0:00:29.1]} 22. Re1 {[%clk
0:00:25.4]} 22... Nd5 {[%clk 0:00:24.1]} 23. Bf3 {[%clk 0:00:20.9]} 23... Nb4
{[%clk 0:00:22.8]} 24. Qxa7 {[%clk 0:00:17.5]} 24... Nc2 {[%clk 0:00:23.5]} 25.
Be3 {[%clk 0:00:16.8]} 25... Nxa1 {[%clk 0:00:22.7]} 26. Rxa1 {[%clk 0:00:18.1]}
26... Bf8 {[%clk 0:00:07.6]} 27. a5 {[%clk 0:00:15.4]} 27... Qb4 {[%clk
0:00:06.6]} 28. Rb1 {[%clk 0:00:07.6]} 28... Nf5 {[%clk 0:00:07.6]} 29. Bb6
{[%clk 0:00:07.1]} 29... Nd4 {[%clk 0:00:07.9]} 30. Bxd8 {[%clk 0:00:03.4]}
30... Bc5 {[%clk 0:00:06.6]} 31. Qb8 {[%clk 0:00:04.3]} 31... O-O {[%clk
0:00:07.8]} 32. Kh1 {[%clk 0:00:05.2]} 32... Ne6 {[%clk 0:00:05.2]} 33. Qc8
{[%clk 0:00:05]} 33... Rxd8 {[%clk 0:00:06.5]} 34. Qxd8+ {[%clk 0:00:05.1]}
34... Nxd8 {[%clk 0:00:08.4]} 35. Rd1 {[%clk 0:00:06.2]} 35... Ne6 {[%clk
0:00:09.8]} 36. Ne4 {[%clk 0:00:08.1]} 36... Bd4 {[%clk 0:00:10.7]} 37. a6
{[%clk 0:00:07.1]} 37... bxa6 {[%clk 0:00:11.8]} 38. Bg4 {[%clk 0:00:08]} 38...
Nxf4 {[%clk 0:00:12.4]} 39. Nf6+ {[%clk 0:00:09.4]} 39... Kg7 {[%clk 0:00:13.5]}
40. Ne8+ {[%clk 0:00:10.7]} 40... Kh6 {[%clk 0:00:14.7]} 41. Nd6 {[%clk
0:00:11.9]} 41... Kg7 {[%clk 0:00:15.5]} 42. Ne8+ {[%clk 0:00:13]} 42... Kf8
{[%clk 0:00:17.1]} 43. Nf6 {[%clk 0:00:14.9]} 43... Bxe5 {[%clk 0:00:17.7]} 44.
Nd7+ {[%clk 0:00:15.2]} 44... Kg7 {[%clk 0:00:18.3]} 45. Nxe5 {[%clk 0:00:17.1]}
45... Qxb2 {[%clk 0:00:19.4]} 46. Nxc6 {[%clk 0:00:14.9]} 46... Qxg2# {[%clk
0:00:20.4]} 0-1

[Event "*** Titled Tuesday Blitz"]
[Site "Chess.com"]
[Date "2019.05.07"]
[Round "7"]
[White "Casper_Schoppen"]
[Black "muran29"]
[Result "1-0"]
[WhiteElo "2702"]
[BlackElo "2486"]
[TimeControl "180+2"]
[EndTime "14:41:13 PDT"]
[Termination "Casper_Schoppen won on time"]

1. d4 {[%clk 0:03:01.9]} 1... d5 {[%clk 0:02:59.8]} 2. c4 {[%clk 0:03:02]} 2...
e6 {[%clk 0:03:00.4]} 3. Nf3 {[%clk 0:03:02.8]} 3... Nf6 {[%clk 0:03:01]} 4. Nc3
{[%clk 0:03:02.7]} 4... Nbd7 {[%clk 0:03:00.9]} 5. Bg5 {[%clk 0:02:57.2]} 5...
c6 {[%clk 0:03:01.7]} 6. e3 {[%clk 0:02:57]} 6... Qa5 {[%clk 0:03:01.8]} 7. Nd2
{[%clk 0:02:38.5]} 7... dxc4 {[%clk 0:02:55.2]} 8. Bxf6 {[%clk 0:02:38.9]} 8...
Nxf6 {[%clk 0:02:56]} 9. Nxc4 {[%clk 0:02:40.1]} 9... Qc7 {[%clk 0:02:56.8]} 10.
g3 {[%clk 0:02:38.9]} 10... Be7 {[%clk 0:02:57.1]} 11. Bg2 {[%clk 0:02:39.3]}
11... O-O {[%clk 0:02:58.1]} 12. O-O {[%clk 0:02:41]} 12... Bd7 {[%clk
0:02:35.6]} 13. Rc1 {[%clk 0:02:40.4]} 13... Rfd8 {[%clk 0:02:35.3]} 14. Qb3
{[%clk 0:02:36.9]} 14... Be8 {[%clk 0:02:33.7]} 15. Rfd1 {[%clk 0:02:28.3]}
15... Rac8 {[%clk 0:02:33.5]} 16. a3 {[%clk 0:01:57]} 16... Qb8 {[%clk
0:02:33.9]} 17. e4 {[%clk 0:01:42.8]} 17... h6 {[%clk 0:02:32.4]} 18. e5 {[%clk
0:01:35.8]} 18... Nd5 {[%clk 0:02:19.7]} 19. Ne4 {[%clk 0:01:31.4]} 19... b6
{[%clk 0:01:03.3]} 20. Ncd6 {[%clk 0:01:19.1]} 20... Bxd6 {[%clk 0:01:03.9]} 21.
Nxd6 {[%clk 0:01:20.3]} 21... Rxd6 {[%clk 0:01:02.9]} 22. exd6 {[%clk
0:01:21.5]} 22... Qxd6 {[%clk 0:01:04.8]} 23. h3 {[%clk 0:01:10]} 23... Bd7
{[%clk 0:01:05]} 24. Qd3 {[%clk 0:01:07.9]} 24... Rd8 {[%clk 0:01:04.8]} 25. Qa6
{[%clk 0:01:06.9]} 25... Qb8 {[%clk 0:01:04.9]} 26. Re1 {[%clk 0:01:03.2]} 26...
Nc7 {[%clk 0:01:05.8]} 27. Qe2 {[%clk 0:01:01.5]} 27... Nb5 {[%clk 0:01:01.2]}
28. Red1 {[%clk 0:00:58.5]} 28... Be8 {[%clk 0:01:01.3]} 29. Qe5 {[%clk
0:00:52.9]} 29... Qd6 {[%clk 0:00:29.8]} 30. Qxd6 {[%clk 0:00:46.7]} 30... Rxd6
{[%clk 0:00:31.7]} 31. Rc4 {[%clk 0:00:37.6]} 31... e5 {[%clk 0:00:32.7]} 32. d5
{[%clk 0:00:38]} 32... c5 {[%clk 0:00:34]} 33. Re1 {[%clk 0:00:33.6]} 33... f6
{[%clk 0:00:34.5]} 34. f4 {[%clk 0:00:33.2]} 34... Nd4 {[%clk 0:00:26.8]} 35.
fxe5 {[%clk 0:00:33.4]} 35... fxe5 {[%clk 0:00:28.7]} 36. b4 {[%clk 0:00:18.8]}
36... Bb5 {[%clk 0:00:28.9]} 37. bxc5 {[%clk 0:00:20.1]} 37... bxc5 {[%clk
0:00:27.4]} 38. Rxc5 {[%clk 0:00:21]} 38... a6 {[%clk 0:00:24.3]} 39. Rxe5
{[%clk 0:00:21.2]} 39... Rf6 {[%clk 0:00:15.2]} 40. a4 {[%clk 0:00:22.4]} 40...
Bxa4 {[%clk 0:00:09.2]} 41. Rc4 {[%clk 0:00:23.1]} 41... Bb5 {[%clk 0:00:04.1]}
42. Rxd4 {[%clk 0:00:24]} 42... a5 {[%clk 0:00:05.6]} 43. d6 {[%clk 0:00:24.9]}
1-0

[Event "*** Titled Tuesday Blitz"]
[Site "Chess.com"]
[Date "2019.05.07"]
[Round "7"]
[White "Simoncelli15"]
[Black "Gentlejimmy7"]
[Result "1-0"]
[WhiteElo "2292"]
[BlackElo "2469"]
[TimeControl "180+2"]
[EndTime "14:41:15 PDT"]
[Termination "Simoncelli15 won by checkmate"]

1. e4 {[%clk 0:03:01.9]} 1... c5 {[%clk 0:02:59.6]} 2. Nf3 {[%clk 0:03:01.4]}
2... e6 {[%clk 0:02:59.7]} 3. d4 {[%clk 0:03:01.9]} 3... cxd4 {[%clk 0:03:01.6]}
4. Nxd4 {[%clk 0:03:03.6]} 4... Nf6 {[%clk 0:03:02]} 5. Nc3 {[%clk 0:03:04.4]}
5... Nc6 {[%clk 0:03:02.4]} 6. Ndb5 {[%clk 0:03:05.1]} 6... Bc5 {[%clk 0:03:02]}
7. Nd6+ {[%clk 0:03:02.1]} 7... Ke7 {[%clk 0:03:02.8]} 8. Bf4 {[%clk 0:03:02.9]}
8... e5 {[%clk 0:03:04]} 9. Nf5+ {[%clk 0:03:00.6]} 9... Kf8 {[%clk 0:03:01.1]}
10. Bg5 {[%clk 0:03:02.1]} 10... d6 {[%clk 0:02:47.4]} 11. Bxf6 {[%clk
0:02:44.3]} 11... Qxf6 {[%clk 0:02:41.5]} 12. Nd5 {[%clk 0:02:45.2]} 12... Qd8
{[%clk 0:02:40.8]} 13. Nfe3 {[%clk 0:02:42.6]} 13... Be6 {[%clk 0:02:34.8]} 14.
Be2 {[%clk 0:02:38]} 14... g6 {[%clk 0:02:35.9]} 15. O-O {[%clk 0:02:37.2]}
15... Kg7 {[%clk 0:02:37.1]} 16. c3 {[%clk 0:02:31.6]} 16... f5 {[%clk
0:02:03.2]} 17. b4 {[%clk 0:02:18.6]} 17... Bxe3 {[%clk 0:01:56.9]} 18. Nxe3
{[%clk 0:02:10]} 18... fxe4 {[%clk 0:01:51.9]} 19. Bg4 {[%clk 0:02:08.6]} 19...
Qd7 {[%clk 0:01:43.8]} 20. b5 {[%clk 0:02:01.4]} 20... Ne7 {[%clk 0:01:43.6]}
21. c4 {[%clk 0:01:57.7]} 21... Nf5 {[%clk 0:01:38.4]} 22. Nd5 {[%clk
0:01:54.1]} 22... Nd4 {[%clk 0:01:34.7]} 23. Bxe6 {[%clk 0:01:47.5]} 23... Qxe6
{[%clk 0:01:35.9]} 24. Re1 {[%clk 0:01:48.9]} 24... Rac8 {[%clk 0:01:27.4]} 25.
Rc1 {[%clk 0:01:23.4]} 25... Rhf8 {[%clk 0:01:13.4]} 26. Rxe4 {[%clk 0:01:13.5]}
26... Qf7 {[%clk 0:01:05.9]} 27. f3 {[%clk 0:01:08.2]} 27... Nxb5 {[%clk
0:01:03.2]} 28. Qd3 {[%clk 0:00:47.5]} 28... Nd4 {[%clk 0:01:03.9]} 29. Rce1
{[%clk 0:00:47.3]} 29... Rfe8 {[%clk 0:00:45.7]} 30. h4 {[%clk 0:00:33.9]} 30...
b5 {[%clk 0:00:46.3]} 31. Rxd4 {[%clk 0:00:28.7]} 31... exd4 {[%clk 0:00:42]}
32. Qxd4+ {[%clk 0:00:30.2]} 32... Kh6 {[%clk 0:00:39.2]} 33. Qd2+ {[%clk
0:00:25.1]} 33... Kg7 {[%clk 0:00:39.3]} 34. Qd4+ {[%clk 0:00:21.6]} 34... Kh6
{[%clk 0:00:33.7]} 35. Qd2+ {[%clk 0:00:14.6]} 35... Kg7 {[%clk 0:00:34.7]} 36.
Qb2+ {[%clk 0:00:14.6]} 36... Re5 {[%clk 0:00:23.1]} 37. Rxe5 {[%clk 0:00:14.7]}
37... dxe5 {[%clk 0:00:24.5]} 38. Qxe5+ {[%clk 0:00:16.6]} 38... Kh6 {[%clk
0:00:22.1]} 39. Qg5+ {[%clk 0:00:11.5]} 39... Kg7 {[%clk 0:00:23]} 40. Qe5+
{[%clk 0:00:13.4]} 40... Kh6 {[%clk 0:00:23.7]} 41. g4 {[%clk 0:00:08.5]} 41...
Qxf3 {[%clk 0:00:18.2]} 42. g5+ {[%clk 0:00:10]} 42... Kh5 {[%clk 0:00:19.3]}
43. Nf6+ {[%clk 0:00:11.4]} 43... Kxh4 {[%clk 0:00:20.4]} 44. Qh2+ {[%clk
0:00:13]} 44... Qh3 {[%clk 0:00:20.8]} 45. Qf4+ {[%clk 0:00:14.6]} 45... Qg4+
{[%clk 0:00:16.1]} 46. Qxg4# {[%clk 0:00:16.1]} 1-0

[Event "*** Titled Tuesday Blitz"]
[Site "Chess.com"]
[Date "2019.05.07"]
[Round "7"]
[White "VeraNebolsina"]
[Black "annamaja"]
[Result "1-0"]
[WhiteElo "2368"]
[BlackElo "2163"]
[TimeControl "180+2"]
[EndTime "14:41:22 PDT"]
[Termination "VeraNebolsina won by resignation"]

1. e4 {[%clk 0:03:01.9]} 1... e6 {[%clk 0:03:01]} 2. d4 {[%clk 0:03:02.1]} 2...
d5 {[%clk 0:03:02.4]} 3. exd5 {[%clk 0:03:03.3]} 3... exd5 {[%clk 0:03:02.7]} 4.
Nf3 {[%clk 0:03:03.8]} 4... Nf6 {[%clk 0:03:03.1]} 5. Bd3 {[%clk 0:03:04.3]}
5... Bd6 {[%clk 0:03:03.2]} 6. O-O {[%clk 0:03:04.1]} 6... O-O {[%clk
0:03:04.4]} 7. h3 {[%clk 0:03:05.3]} 7... c6 {[%clk 0:03:05]} 8. c3 {[%clk
0:03:04.3]} 8... Nbd7 {[%clk 0:03:02.5]} 9. Re1 {[%clk 0:03:04.5]} 9... Qc7
{[%clk 0:03:02.6]} 10. Nbd2 {[%clk 0:03:04.7]} 10... b6 {[%clk 0:02:58]} 11. Nf1
{[%clk 0:03:04.8]} 11... c5 {[%clk 0:02:58.4]} 12. Bg5 {[%clk 0:03:01.8]} 12...
Bf4 {[%clk 0:02:41.2]} 13. Bxf4 {[%clk 0:03:00.3]} 13... Qxf4 {[%clk 0:02:43.1]}
14. Qd2 {[%clk 0:03:00.8]} 14... Qxd2 {[%clk 0:02:37.1]} 15. N3xd2 {[%clk
0:02:57.7]} 15... Bb7 {[%clk 0:02:25.4]} 16. Ne3 {[%clk 0:02:57.3]} 16... g6
{[%clk 0:02:19.9]} 17. f3 {[%clk 0:02:58.3]} 17... Rfe8 {[%clk 0:02:18.5]} 18.
Kf2 {[%clk 0:02:59]} 18... Re6 {[%clk 0:02:16.4]} 19. g4 {[%clk 0:02:58.8]}
19... Rae8 {[%clk 0:02:15.9]} 20. h4 {[%clk 0:02:59.2]} 20... Nb8 {[%clk
0:02:04.6]} 21. Nc2 {[%clk 0:02:25.8]} 21... Nc6 {[%clk 0:01:40.2]} 22. Rxe6
{[%clk 0:02:24.4]} 22... Rxe6 {[%clk 0:01:40.2]} 23. dxc5 {[%clk 0:02:11.8]}
23... bxc5 {[%clk 0:01:40.5]} 24. b4 {[%clk 0:02:12.8]} 24... c4 {[%clk
0:01:37]} 25. Bf1 {[%clk 0:02:12.9]} 25... Ne5 {[%clk 0:01:33.1]} 26. Nd4 {[%clk
0:02:12.8]} 26... Re7 {[%clk 0:01:31.1]} 27. a4 {[%clk 0:02:09.6]} 27... Nfd7
{[%clk 0:01:20.7]} 28. a5 {[%clk 0:02:08.7]} 28... a6 {[%clk 0:01:16.9]} 29. g5
{[%clk 0:02:05.8]} 29... Nc6 {[%clk 0:01:11.5]} 30. Nxc6 {[%clk 0:02:04.6]}
30... Bxc6 {[%clk 0:01:13.4]} 31. f4 {[%clk 0:02:05]} 31... Nf8 {[%clk
0:01:05.3]} 32. Re1 {[%clk 0:02:04.5]} 32... Rxe1 {[%clk 0:01:04.3]} 33. Kxe1
{[%clk 0:02:04.9]} 33... Ne6 {[%clk 0:01:06.2]} 34. f5 {[%clk 0:01:55.3]} 34...
gxf5 {[%clk 0:01:05.6]} 35. Nf3 {[%clk 0:01:56.3]} 35... Nf4 {[%clk 0:00:41.6]}
36. Nd4 {[%clk 0:01:55.4]} 36... Bd7 {[%clk 0:00:26.3]} 37. Kf2 {[%clk 0:01:55]}
37... f6 {[%clk 0:00:21.2]} 38. gxf6 {[%clk 0:01:52.3]} 38... Kf7 {[%clk
0:00:22.4]} 39. Kf3 {[%clk 0:01:52.2]} 39... Ne6 {[%clk 0:00:21.1]} 40. Nxf5
{[%clk 0:01:49.6]} 40... Kxf6 {[%clk 0:00:21.3]} 41. Ne3 {[%clk 0:01:49.7]}
41... Ke5 {[%clk 0:00:20.1]} 42. Ng4+ {[%clk 0:01:49.3]} 42... Kd6 {[%clk
0:00:20.7]} 43. Nf6 {[%clk 0:01:48.6]} 43... Bb5 {[%clk 0:00:19.8]} 44. Ke3
{[%clk 0:01:45]} 44... h6 {[%clk 0:00:17.1]} 45. Bh3 {[%clk 0:01:41.8]} 45...
Ng7 {[%clk 0:00:13.5]} 46. Ng8 {[%clk 0:01:39.5]} 46... h5 {[%clk 0:00:14.1]}
47. Nh6 {[%clk 0:01:37.4]} 47... Ke7 {[%clk 0:00:12.6]} 48. Nf5+ {[%clk
0:01:37.1]} 48... Nxf5+ {[%clk 0:00:12.7]} 49. Bxf5 {[%clk 0:01:38]} 49... Kf6
{[%clk 0:00:14]} 50. Kf4 {[%clk 0:01:38.8]} 50... Ba4 {[%clk 0:00:06.9]} 51. Bh3
{[%clk 0:01:38.3]} 51... d4 {[%clk 0:00:07.6]} 52. cxd4 {[%clk 0:01:37.9]} 52...
c3 {[%clk 0:00:08.8]} 53. Ke3 {[%clk 0:01:39]} 53... c2 {[%clk 0:00:09.6]} 54.
Kd2 {[%clk 0:01:40.1]} 54... Ke7 {[%clk 0:00:11]} 55. Bf5 {[%clk 0:01:40.2]}
55... Kd6 {[%clk 0:00:11.2]} 56. Bxc2 {[%clk 0:01:41]} 56... Bb5 {[%clk
0:00:10.4]} 57. Bd3 {[%clk 0:01:41.8]} 57... Bc6 {[%clk 0:00:07.2]} 58. Bxa6
{[%clk 0:01:42.2]} 58... Kd5 {[%clk 0:00:08.4]} 59. b5 {[%clk 0:01:42.4]} 59...
Ba8 {[%clk 0:00:08.8]} 60. b6 {[%clk 0:01:42.9]} 60... Kxd4 {[%clk 0:00:09.7]}
61. b7 {[%clk 0:01:43.8]} 61... Bxb7 {[%clk 0:00:10.8]} 62. Bxb7 {[%clk
0:01:44.8]} 62... Kc5 {[%clk 0:00:12.2]} 63. a6 {[%clk 0:01:45.9]} 63... Kb6
{[%clk 0:00:13.4]} 64. Ke3 {[%clk 0:01:46.6]} 1-0